bitfinex/quotes_ETHUSD_20251119
["timestamp","ask_amount","ask_price","bid_price","bid_amount"]
[1763562789398,0.00615455,3053.0,3052.0,0.405504]
[1763562789728,0.00615455,3053.0,3052.5,0.90699264]
[1763562790010,0.1981,3055.3,3052.6,1.19257264]
[1763562790215,0.1981,3055.3,3053.6,1.31249664]
[1763562790365,0.51991385,3055.2,3052.7,0.4805]
[1763562790565,0.51991385,3055.2,3052.8,0.405504]
[1763562790820,0.479,3055.2,3053.2,0.90699264]
[1763562791022,0.1981,3055.9,3053.6,1.31249664]
[1763562791224,0.51385182,3055.1,3054.7,0.90699264]
[1763562791525,0.479,3056.2,3054.8,0.405504]
[1763562791709,0.1713712,3057.8,3054.8,0.405504]
[1763562791710,0.479,3056.9,3054.9,0.523504]
[1763562791913,0.51372599,3055.6,3055.3,1.31249664]
[1763562792113,0.479,3057.5,3055.5,0.501004]
[1763562792293,0.479,3055.9,3054.1,5.78369379]
[1763562792618,0.479,3055.9,3054.2,0.90699264]
[1763562792822,0.479,3055.9,3054.3,0.405504]
[1763562793021,0.479,3057.4,3054.8,0.90699264]
[1763562793190,0.479,3056.2,3054.3,0.4805]
[1763562793390,0.479,3056.2,3054.4,0.405504]
[1763562793599,0.1981,3056.5,3054.8,1.31249664]
[1763562793827,0.479,3057.0,3054.8,1.31249664]
[1763562794027,0.1713712,3057.8,3055.9,5.97359379]
[1763562794249,0.1713712,3057.8,3056.6,1.31249664]
[1763562794589,0.1981,3058.2,3056.7,0.405504]
[1763562794741,0.479,3058.6,3056.8,6.54278984]
[1763562794927,0.479,3058.6,3056.1,3.27214139]
[1763562794928,0.479,3058.6,3056.9,0.886004]
[1763562795256,0.51337936,3058.2,3056.1,0.4805]
[1763562795551,0.51337936,3058.2,3055.7,0.405504]
[1763562795744,0.1981,3058.1,3056.1,0.405504]
[1763562795946,0.6771,3058.1,3056.3,0.405504]
[1763562796100,0.51337936,3058.2,3056.8,0.405504]
[1763562796294,0.51337936,3058.2,3057.0,0.405504]
[1763562796551,0.479,3059.2,3057.4,1.31249664]
[1763562796711,0.479,3059.2,3057.6,0.405504]
[1763562796895,0.51326268,3058.9,3057.8,1.31249664]
[1763562797097,0.479,3059.8,3057.8,1.31249664]
[1763562797351,0.1981,3060.8,3058.6,5.78369379]
[1763562797531,0.1981,3060.8,3059.3,1.31249664]
[1763562797734,0.6771,3061.7,3059.5,0.405504]
[1763562797903,0.09083496,3062.5,3060.4,5.78369379]
[1763562798245,5.78369379,3064.6,3061.1,1.31249664]
[1763562798446,0.03282732,3063.5,3059.7,0.4805]
[1763562798626,0.03282732,3063.5,3060.5,0.405504]
[1763562798830,0.03282732,3063.5,3059.8,0.119]
[1763562799030,5.98179379,3063.6,3060.9,1.31249664]
[1763562799031,0.1981,3063.6,3060.9,1.31249664]
[1763562799203,0.03282732,3063.5,3059.8,5.78369379]
[1763562799396,5.78369379,3063.1,3059.6,0.90699264]
[1763562799606,0.90699264,3063.0,3059.7,0.4805]
[1763562799806,0.03282732,3062.9,3059.7,1.50649264]
[1763562800005,0.67592632,3063.4,3059.4,0.1834]
[1763562800006,0.51281911,3062.8,3059.5,5.78369379]
[1763562800209,0.51281911,3062.8,3058.8,0.4805]
[1763562800210,0.90699264,3062.2,3058.8,0.4805]
[1763562800556,1.31249664,3061.5,3058.2,0.4805]
[1763562800854,0.90699264,3061.1,3057.8,0.78534575]
[1763562801043,0.03282732,3061.0,3057.9,0.4805]
[1763562801244,0.405504,3060.9,3057.7,5.78369379]
[1763562801401,0.51182732,3061.0,3058.3,5.78369379]
[1763562801601,0.405504,3060.7,3057.4,0.4805]
[1763562801847,0.479,3060.9,3056.9,5.78369379]
[1763562801848,0.405504,3060.3,3056.9,5.78369379]
[1763562801999,1.31249664,3060.0,3056.6,0.119]
[1763562802251,1.31249664,3059.4,3056.0,0.4805]
[1763562802499,0.405504,3059.6,3056.4,5.78369379]
[1763562802680,0.51182732,3059.5,3056.5,0.588]
[1763562802857,3.67411981,3059.4,3056.0,6.96782443]
[1763562803050,0.405504,3059.2,3056.1,0.69678244]
[1763562803376,0.405504,3059.0,3056.2,0.4805]
[1763562803576,0.405504,3058.8,3056.1,0.69678244]
[1763562803785,0.405504,3058.8,3055.7,3.39253443]
[1763562803786,0.405504,3058.6,3055.5,0.4805]
[1763562803986,0.405504,3058.4,3054.9,3.27332523]
[1763562804290,0.405504,3058.2,3054.8,0.4805]
[1763562804488,0.405504,3058.2,3052.6,3.32588383]
[1763562804489,0.405504,3058.0,3054.6,3.46363931]
[1763562804788,6.96782443,3057.5,3054.2,0.90699264]
[1763562804975,1.31249664,3057.4,3054.3,0.03274072]
[1763562805284,1.79209664,3057.4,3054.0,0.90699264]
[1763562805488,0.405504,3057.2,3054.0,0.48734394]
[1763562805701,0.4796,3057.3,3056.0,0.001]
[1763562806908,0.405504,3057.2,3056.0,0.001]
[1763562807276,0.4796,3057.1,3056.0,0.001]
[1763562807476,0.405504,3057.0,3056.0,0.001]
[1763562807981,6.96782443,3057.7,3055.6,0.001]
[1763562807982,0.1927,3056.1,3055.6,0.001]
[1763562808395,0.405504,3055.9,3053.3,0.1967]
[1763562808692,0.4796,3056.0,3053.3,0.1967]
[1763562808693,0.4796,3056.0,3053.6,0.90699264]
[1763562809010,0.4796,3056.7,3054.2,1.31249664]
[1763562809185,0.4796,3056.7,3054.8,1.31249664]
[1763562809513,0.4796,3056.7,3053.8,16.3730434]
[1763562809514,0.4796,3056.7,3054.1,6.96782443]
[1763562809808,0.405504,3056.6,3054.2,0.4546]
[1763562810013,0.4796,3056.7,3054.2,1.48159264]
[1763562810198,0.51366506,3056.1,3054.3,1.25044571]
[1763562810399,0.51366506,3056.1,3054.5,0.405504]
[1763562810601,0.4796,3056.7,3054.5,0.405504]
[1763562810781,0.20322732,3058.1,3055.0,1.31249664]
[1763562810782,0.4796,3057.4,3055.0,1.31249664]
[1763562810980,0.4796,3057.4,3055.2,0.405504]
[1763562811181,0.4796,3057.4,3055.4,0.405504]
[1763562811377,0.4796,3057.4,3055.4,0.90699264]
[1763562811606,0.4796,3057.4,3055.5,1.69304571]
[1763562811815,0.4796,3057.4,3055.5,0.4546]
[1763562812017,0.4796,3057.4,3055.2,0.405504]
[1763562812313,0.405504,3057.3,3054.1,0.4546]
[1763562812527,0.405504,3057.1,3053.4,3.72963766]
[1763562812735,0.405504,3057.1,3053.4,7.00467532]
[1763562813012,0.4796,3057.0,3053.9,0.90699264]
[1763562813228,0.405504,3056.9,3054.0,0.5746]
[1763562813382,0.51368319,3056.2,3054.0,0.5746]
[1763562813722,0.90699264,3057.8,3053.6,13.0992926]
[1763562813723,0.405504,3056.1,3053.6,6.5496463]
[1763562813934,0.1927,3056.1,3054.1,0.4546]
[1763562814221,0.4788,3056.0,3054.1,0.4546]
[1763562814382,0.405504,3055.9,3053.6,3.27482315]
[1763562814583,0.405504,3055.9,3053.6,1.06972476]
[1763562814784,0.405504,3056.0,3053.7,0.03274715]
[1763562815019,0.405504,3056.0,3053.6,1.06972476]
[1763562815220,0.405504,3056.0,3053.1,3.27535758]
[1763562815421,0.405504,3056.0,3053.6,0.90699264]
[1763562815720,0.405504,3056.0,3053.8,0.405504]
[1763562816322,0.1927,3056.1,3053.9,0.405504]
[1763562816323,0.4796,3055.9,3053.9,0.405504]
[1763562816538,0.4796,3055.9,3054.1,0.405504]
[1763562816884,0.4796,3055.9,3054.4,0.90699264]
[1763562817115,0.4796,3055.9,3054.0,0.12]
[1763562817116,0.51372626,3055.5,3053.5,3.2749304]
[1763562817322,0.51372626,3055.5,3053.4,0.4546]
[1763562817532,0.4796,3055.4,3053.4,7.00464312]
[1763562817731,0.4796,3055.4,3053.5,0.90699264]
[1763562818040,0.4796,3055.4,3053.0,10.2431893]
[1763562818219,0.4796,3055.4,3053.1,0.90699264]
[1763562818527,0.4796,3055.4,3053.2,1.48970487]
[1763562818734,0.4796,3055.4,3053.3,0.405504]
[1763562818895,0.405504,3055.3,3053.1,0.90699264]
[1763562819097,0.405504,3055.3,3052.2,0.1942]
[1763562819299,0.405504,3055.1,3051.1,6.96782443]
[1763562819500,0.405504,3055.1,3052.3,6.96782443]
[1763562819821,0.4794,3055.4,3053.0,0.90699264]
[1763562820023,0.4794,3055.4,3053.1,0.405504]
[1763562820221,0.4794,3055.4,3053.3,0.405504]
[1763562820710,0.4794,3055.4,3053.4,0.4714]
[1763562820906,0.4794,3055.4,3053.6,1.31249664]
[1763562821106,0.4794,3055.4,3052.9,0.4714]
[1763562821317,0.405504,3055.3,3052.9,3.74695454]
[1763562821523,1.31249664,3055.3,3051.7,0.4714]
[1763562821709,0.405504,3055.1,3051.7,0.4714]
[1763562821909,0.405504,3054.9,3051.7,0.4714]
[1763562822235,0.405504,3054.2,3051.7,0.4714]
[1763562822450,0.405504,3054.2,3051.0,3.27755684]
[1763562822451,6.96782443,3054.1,3050.8,0.4714]
[1763562822736,1.31249664,3053.4,3050.2,0.4714]
[1763562822937,1.31249664,3053.4,3050.4,0.90699264]
[1763562823101,0.405504,3053.2,3050.5,0.12]
[1763562823300,0.4794,3053.3,3050.7,6.96782443]
[1763562823612,0.4794,3054.6,3053.5,0.001]
[1763562823926,0.1885,3054.7,3053.5,0.001]
[1763562824242,0.4794,3054.6,3053.5,0.001]
[1763562824600,0.4794,3055.3,3053.6,0.405504]
[1763562825047,0.4794,3055.8,3053.9,0.405504]
[1763562825242,0.002,3056.0,3054.4,1.31249664]
[1763562825541,0.002,3056.0,3054.6,0.405504]
[1763562825740,0.4794,3055.9,3054.5,0.82803211]
[1763562825948,0.5137314,3055.7,3054.3,0.405504]
[1763562826308,0.5137314,3055.7,3054.2,0.12]
[1763562826508,0.5137314,3055.7,3054.2,0.405504]
[1763562826904,0.5137314,3055.7,3054.1,0.4714]
[1763562826905,0.4794,3055.6,3053.9,0.90699264]
[1763562827109,0.4794,3055.6,3053.8,3.39453461]
[1763562827110,0.4794,3055.6,3054.0,0.405504]
[1763562827350,0.5137314,3055.7,3054.3,1.31249664]
[1763562827534,0.002,3056.0,3054.4,0.82803211]
[1763562827708,0.002,3056.0,3054.5,0.405504]
[1763562828034,0.4814,3056.0,3054.5,0.405504]
[1763562828472,0.002,3056.0,3054.6,0.4714]
[1763562828629,0.4794,3055.9,3053.9,0.90699264]
[1763562828951,0.4794,3055.9,3053.8,13.5170336]
[1763562829148,0.4794,3055.9,3053.9,2.305836]
[1763562829321,0.002,3056.0,3054.0,0.12]
[1763562829523,0.002,3056.0,3054.0,0.4714]
[1763562829524,0.4794,3055.9,3054.0,0.4714]
[1763562830546,0.51379376,3055.8,3054.0,0.4714]
[1763562830721,0.51379376,3055.8,3054.1,0.405504]
[1763562830916,0.4794,3055.7,3054.1,0.318274]
[1763562831110,0.4794,3055.7,3054.2,0.405504]
[1763562831344,0.51379376,3055.8,3054.4,0.405504]
[1763562831740,0.51379376,3055.8,3054.6,0.405504]
[1763562832130,0.002,3056.0,3054.8,0.405504]
[1763562832349,0.002,3056.0,3055.0,0.405504]
[1763562833089,0.4794,3055.9,3054.3,0.90699264]
[1763562833239,0.51222732,3055.9,3053.9,0.4714]
[1763562833558,0.4794,3055.9,3054.0,0.90699264]
[1763562833759,1.16868541,3055.9,3054.0,1.7116309]
[1763562833978,1.12759767,3055.8,3053.3,0.0905]
[1763562834183,0.002,3056.0,3054.1,6.96782443]
[1763562834473,0.002,3056.0,3055.4,0.90699264]
[1763562834679,0.002,3056.0,3055.5,0.995904]
[1763562834971,0.002,3056.0,3055.9,4.77905502]
[1763562835359,0.002,3056.0,3055.9,5.25045502]
[1763562835569,0.002,3056.4,3056.0,1.31249664]
[1763562835739,0.002,3056.4,3056.2,0.405504]
[1763562836069,0.002,3056.4,3056.3,0.405504]
[1763562836459,0.002,3056.4,3056.3,0.876904]
[1763562836773,0.002,3056.4,3056.3,0.995904]
[1763562837085,0.002,3056.4,3056.2,0.119]
[1763562837248,0.002,3056.4,3056.3,0.876904]
[1763562837449,0.002,3056.4,3056.3,0.405504]
[1763562837680,0.002,3056.4,3056.2,0.524504]
[1763562837968,0.002,3056.4,3056.3,0.405504]
[1763562838482,0.002,3056.4,3055.9,0.1942]
[1763562838690,0.002,3056.4,3056.0,8.34621707]
[1763562838849,0.002,3056.4,3056.1,0.405504]
[1763562839055,0.002,3056.4,3056.2,0.90699264]
[1763562839263,0.0012,3056.4,3056.2,0.90699264]
[1763562839576,0.0012,3056.4,3056.3,0.4714]
[1763562840015,0.1704,3058.1,3056.3,0.4714]
[1763562840016,0.1885,3058.9,3056.4,0.405504]
[1763562840215,0.6679,3058.9,3057.3,0.90699264]
[1763562840515,1.12746103,3059.8,3056.5,0.4714]
[1763562840516,0.1885,3060.0,3057.9,1.31249664]
[1763562840719,0.1885,3060.5,3058.6,0.405504]
[1763562840914,0.1885,3060.5,3059.1,0.90699264]
[1763562841233,0.1885,3060.5,3058.0,1.49363211]
[1763562841234,0.4794,3060.4,3058.0,0.82803211]
[1763562841383,0.1885,3059.1,3057.3,0.90699264]
[1763562841583,0.5131345,3060.2,3057.5,0.405504]
[1763562841785,0.4794,3060.2,3057.7,0.405504]
[1763562842020,0.51309547,3060.1,3058.2,1.31249664]
[1763562842227,0.03282732,3060.1,3056.9,7.43922443]
[1763562842431,0.51312349,3059.6,3057.5,6.96782443]
[1763562842591,0.51312349,3059.6,3058.2,1.31249664]
[1763562842929,0.51312349,3059.6,3057.1,0.76334244]
[1763562842930,0.4794,3061.1,3059.6,0.405504]
[1763562843216,0.03282732,3061.0,3058.7,0.119]
[1763562843431,0.03282732,3061.0,3058.3,0.5625]
[1763562843432,0.03282732,3061.0,3058.0,7.43922443]
[1763562843580,0.4794,3060.9,3057.5,0.90699264]
[1763562843776,1.31249664,3060.6,3057.5,0.4714]
[1763562843989,0.405504,3060.4,3057.5,0.4714]
[1763562844190,0.405504,3060.4,3057.6,0.405504]
[1763562844485,1.35243732,3060.5,3057.0,3.93674499]
[1763562844486,0.405504,3060.2,3057.0,3.93674499]
[1763562844678,0.405504,3060.2,3057.0,0.6656]
[1763562844679,0.405504,3060.0,3057.0,0.6656]
[1763562844905,0.4794,3060.1,3057.4,6.96782443]
[1763562845106,0.51317609,3059.3,3058.1,1.31249664]
[1763562845290,0.51317609,3059.3,3058.1,1.43149664]
[1763562845494,0.4794,3060.0,3058.3,0.405504]
[1763562845695,0.51302896,3059.1,3059.0,1.31249664]
[1763562845920,0.4794,3061.1,3059.1,0.90699264]
[1763562846094,0.51288416,3061.0,3059.8,1.31249664]
[1763562846422,0.4794,3061.4,3059.3,0.405504]
[1763562846854,0.4794,3061.4,3059.4,0.119]
[1763562846990,0.4794,3061.4,3059.8,0.90699264]
[1763562847190,0.4794,3061.4,3059.4,0.90699264]
[1763562847388,0.03282732,3061.3,3058.9,3.67465304]
[1763562847587,0.4794,3061.4,3059.4,0.90699264]
[1763562847831,0.4794,3061.4,3059.5,0.474]
[1763562848042,0.4794,3061.4,3059.3,0.405504]
[1763562848328,0.03282732,3061.3,3058.4,3.74365022]
[1763562848499,1.34532396,3061.3,3057.7,0.474]
[1763562848708,0.405504,3061.1,3057.9,6.96782443]
[1763562849009,0.405504,3060.5,3057.7,0.474]
[1763562849220,0.405504,3060.3,3057.8,0.119]
[1763562849525,0.405504,3060.1,3057.6,0.474]
[1763562849724,0.51315219,3059.7,3057.7,0.119]
[1763562849928,0.485,3059.6,3058.2,0.405504]
[1763562850090,0.405504,3059.5,3057.4,6.96782443]
[1763562850440,0.485,3059.6,3057.5,2.07777508]
[1763562850588,0.485,3059.5,3057.6,0.119]
[1763562850789,0.485,3059.5,3057.7,0.119]
[1763562851050,0.485,3059.5,3057.7,0.593]
[1763562851188,0.485,3059.5,3057.8,0.90699264]
[1763562851393,0.485,3059.5,3057.8,0.119]
[1763562851622,0.485,3059.5,3057.8,0.90699264]
[1763562851840,0.485,3059.5,3057.9,0.474]
[1763562852143,0.405504,3059.4,3057.7,0.90699264]
[1763562852338,0.51315219,3059.7,3058.1,0.90699264]
[1763562852553,0.51315219,3059.7,3058.7,1.31249664]
[1763562852758,0.51315219,3059.7,3058.6,6.96782443]
[1763562852759,0.51315219,3059.7,3059.2,1.31249664]
[1763562852899,0.6674724,3061.2,3059.4,0.405504]
[1763562853254,0.51293215,3060.5,3058.6,0.474]
[1763562853401,0.99800472,3060.6,3058.9,0.405504]
[1763562853605,0.51300472,3060.6,3059.2,0.405504]
[1763562853912,0.485,3060.5,3058.5,0.90699264]
[1763562854314,0.485,3060.5,3058.6,7.44182443]
[1763562854500,0.1885,3061.5,3058.8,0.405504]
[1763562854705,0.1885,3061.5,3059.4,0.405504]
[1763562854925,0.1869,3062.0,3059.9,1.31249664]
[1763562855225,0.21972732,3062.0,3060.1,1.31249664]
[1763562855426,0.485,3061.9,3060.1,1.93694369]
[1763562855627,0.1869,3062.0,3060.3,0.405504]
[1763562855857,0.485,3062.4,3060.5,1.31249664]
[1763562856073,0.1905,3063.0,3061.1,0.405504]
[1763562856262,0.1905,3063.0,3061.3,0.405504]
[1763562856263,0.51269411,3061.6,3061.3,0.405504]
[1763562856580,0.002,3063.0,3061.6,1.31249664]
[1763562856762,0.002,3063.0,3062.5,8.28032107]
[1763562856928,0.002,3063.0,3062.6,1.31249664]
[1763562857128,0.002,3063.3,3063.0,0.405504]
[1763562857432,0.002,3063.3,3063.2,0.405504]
[1763562857623,0.002,3063.3,3063.0,0.90699264]
[1763562857827,0.002,3063.3,3063.1,0.474]
[1763562858057,0.002,3063.3,3063.2,0.90699264]
[1763562858256,0.002,3063.3,3062.8,1.02599264]
[1763562858459,0.002,3063.3,3063.0,0.405504]
[1763562858643,0.002,3063.3,3063.2,1.31249664]
[1763562858848,0.485,3065.5,3063.2,2.22847915]
[1763562859064,0.17107169,3066.1,3063.7,6.96782443]
[1763562859368,0.6719,3065.7,3063.8,1.43149664]
[1763562859538,0.6719,3065.7,3063.6,0.1922]
[1763562859739,0.1869,3065.7,3063.6,0.1922]
[1763562860065,0.485,3065.6,3063.9,0.90699264]
[1763562860263,0.17107169,3066.1,3063.9,0.90699264]
[1763562860481,0.485,3065.8,3063.8,1.31249664]
[1763562860760,0.002,3063.3,3063.2,1.82297515]
[1763562860964,0.002,3063.3,3063.2,4.17155257]
[1763562861260,0.51220889,3065.4,3063.3,1.31249664]
[1763562861433,0.002,3063.7,3063.5,0.405504]
[1763562861875,0.002,3064.0,3063.7,0.405504]
[1763562862588,0.002,3064.0,3063.2,3.73846835]
[1763562862799,0.002,3064.0,3063.6,0.405504]
[1763562863012,0.002,3064.0,3063.0,3.26470013]
[1763562863150,0.002,3064.0,3063.1,0.119]
[1763562863688,0.002,3064.0,3062.6,0.119]
[1763562863900,0.1869,3063.9,3061.8,0.474]
[1763562864116,0.1869,3063.9,3062.3,6.96782443]
[1763562864404,0.487,3064.0,3062.4,0.119]
[1763562864568,0.002,3064.0,3062.4,0.593]
[1763562864753,0.002,3064.0,3062.7,5.69381967]
[1763562864959,0.002,3064.0,3062.8,1.31249664]
[1763562865271,0.485,3063.9,3062.8,0.90699264]
[1763562865455,0.5123089,3063.8,3062.8,4.17196682]
[1763562865649,0.5123089,3063.8,3062.8,7.4369531]
[1763562865851,0.4624,3063.7,3062.6,0.90699264]
[1763562866155,0.4624,3063.7,3061.7,6.53231864]
[1763562866304,0.4624,3063.7,3061.8,1.27170383]
[1763562866473,0.4624,3063.7,3061.6,12.71725167]
[1763562866674,0.4624,3063.7,3062.3,0.90699264]
[1763562866984,0.4624,3063.7,3062.2,0.90699264]
[1763562867493,0.4624,3063.7,3062.2,4.17261866]
[1763562867660,0.4624,3063.7,3062.2,0.90699264]
[1763562867865,0.405504,3063.6,3061.3,3.26658609]
[1763562868066,0.405504,3063.6,3060.9,5.69381967]
[1763562868261,0.405504,3063.4,3059.9,5.88981967]
[1763562868473,0.405504,3063.4,3060.0,3.26797385]
[1763562868673,0.405504,3063.2,3059.9,5.88981967]
[1763562868875,1.31249664,3062.3,3059.0,3.26900595]
[1763562869075,0.405504,3062.1,3059.1,0.3269006]
[1763562869403,0.405504,3062.1,3058.5,3.26957307]
[1763562869404,0.405504,3061.7,3058.5,3.26957307]
[1763562869605,1.31249664,3061.3,3057.5,5.69381967]
[1763562869935,0.405504,3060.6,3057.0,0.4909]
[1763562870237,0.405504,3060.4,3057.2,0.119]
[1763562870544,0.6493,3060.5,3056.6,3.27260127]
[1763562870545,1.31249664,3059.5,3056.6,3.27260127]
[1763562870726,1.31249664,3059.5,3056.6,6.54421024]
[1763562870925,0.405504,3059.3,3056.6,0.001]
[1763562871296,0.405504,3059.1,3056.6,0.001]
[1763562871503,0.405504,3058.9,3056.6,0.001]
[1763562871700,0.1899,3058.3,3056.6,0.001]
[1763562872440,0.1899,3058.3,3056.8,0.405504]
[1763562872602,0.4624,3058.2,3056.7,0.0855]
[1763562872932,0.4624,3058.2,3056.6,0.4919]
[1763562872933,0.4624,3058.2,3056.6,0.001]
[1763562873135,0.405504,3058.1,3056.6,0.001]
[1763562873501,0.405504,3057.9,3056.6,0.001]
[1763562873798,0.4624,3058.0,3056.6,0.001]
[1763562874037,0.405504,3057.8,3056.6,0.001]
[1763562874399,0.4624,3057.7,3056.6,0.001]
[1763562874923,0.405504,3057.6,3056.6,0.001]
[1763562875326,0.405504,3057.4,3056.6,0.001]
[1763562875557,0.4624,3057.5,3056.6,0.001]
[1763562875854,0.51357244,3057.3,3056.0,0.001]
[1763562876150,0.69124691,3057.2,3056.0,0.001]
[1763562876298,0.405504,3057.1,3056.0,0.001]
[1763562876502,0.405504,3057.1,3054.9,0.001]
[1763562876503,0.867904,3057.1,3054.9,0.001]
[1763562876740,1.31249664,3056.8,3054.9,0.001]
[1763562877241,0.4624,3056.7,3054.9,0.001]
[1763562877476,0.4624,3056.7,3055.0,0.405504]
[1763562877782,0.4624,3056.7,3054.9,0.001]
[1763562878191,0.405504,3056.6,3054.9,0.001]
[1763562878373,0.4624,3056.7,3054.9,0.001]
[1763562878691,0.486,3057.3,3055.4,0.405504]
[1763562878851,0.486,3057.3,3055.4,0.891004]
[1763562879040,0.51353629,3057.0,3055.5,0.17979966]
[1763562879238,0.51353629,3057.0,3055.2,0.405504]
[1763562879239,0.486,3056.9,3055.2,0.405504]
[1763562879441,0.6722,3056.9,3055.1,0.4855]
[1763562879641,0.6722,3056.9,3054.9,3.27442445]
[1763562879845,0.486,3056.8,3054.9,0.001]
[1763562880039,0.486,3056.8,3054.9,0.03373429]
[1763562880239,0.486,3056.8,3054.9,0.001]
[1763562880465,0.486,3056.8,3054.9,3.27441597]
[1763562880665,0.486,3056.8,3054.9,7.20261866]
[1763562880865,0.486,3056.8,3054.9,0.001]
[1763562881076,0.405504,3056.7,3054.9,0.001]
[1763562881492,0.486,3056.6,3054.9,0.001]
[1763562882658,0.405504,3056.5,3054.9,0.001]
[1763562883061,0.405504,3056.3,3054.9,0.001]
[1763562883306,0.51368736,3056.2,3054.9,0.001]
[1763562883608,0.486,3056.3,3054.9,0.001]
[1763562883903,0.891504,3056.8,3054.9,0.001]
[1763562884209,0.405504,3056.6,3054.9,0.001]
[1763562884409,0.1862,3055.0,3054.9,0.001]
[1763562884898,0.1862,3055.0,3054.2,0.001]
[1763562884899,0.405504,3054.9,3054.2,0.001]
[1763562885101,1.31249664,3054.5,3053.2,0.001]
[1763562885308,1.31249664,3053.9,3053.2,0.001]
[1763562885464,0.405504,3053.7,3049.6,3.27911857]
[1763562885661,0.405504,3053.5,3050.6,0.1966]
[1763562885960,0.486,3053.5,3051.1,0.90699264]
[1763562886166,0.486,3053.5,3050.6,0.1966]
[1763562886374,0.51421944,3053.0,3051.1,0.4855]
[1763562886794,0.486,3052.9,3051.1,0.4855]
[1763562887300,0.486,3052.9,3050.6,0.1966]
[1763562887483,0.486,3052.9,3050.7,6.55587242]
[1763562887668,0.486,3052.9,3050.8,1.58223988]
[1763562888273,0.486,3052.9,3050.9,0.4855]
[1763562888699,0.486,3052.9,3051.0,0.405504]
[1763562888923,0.90699264,3054.1,3051.2,0.405504]
[1763562889091,0.4852,3052.9,3051.0,3.27761389]
[1763562889572,0.4852,3052.9,3051.1,0.0849]
[1763562889773,0.405504,3052.8,3051.0,0.90699264]
[1763562890030,0.51427796,3052.5,3051.1,0.5704]
[1763562890208,0.405504,3053.4,3051.2,0.405504]
[1763562890429,0.66008123,3054.0,3051.5,0.87414902]
[1763562890713,0.03282732,3054.9,3051.7,0.405504]
[1763562890872,1.09319264,3055.0,3051.7,0.405504]
[1763562891073,4.18103217,3054.4,3051.6,0.65679687]
[1763562891282,4.18103217,3054.4,3051.1,0.0849]
[1763562891283,0.405504,3054.3,3051.1,6.63990077]
[1763562891585,0.405504,3054.1,3051.2,0.4855]
[1763562891918,0.486,3054.2,3051.3,0.405504]
[1763562892086,0.03282732,3054.3,3051.3,0.405504]
[1763562892087,5.69381967,3053.9,3051.3,0.4855]
[1763562892286,0.405504,3053.7,3050.8,1.16074724]
[1763562892499,0.405504,3053.7,3051.0,0.90699264]
[1763562892809,1.39299264,3053.8,3051.0,0.90699264]
[1763562892810,0.405504,3053.5,3051.0,0.90699264]
[1763562893126,0.405504,3053.5,3050.8,0.90699264]
[1763562893341,0.405504,3053.5,3050.6,0.1966]
[1763562893342,6.09932367,3053.3,3050.6,0.1966]
[1763562893625,0.405504,3052.8,3050.6,0.90699264]
[1763562893778,0.405504,3052.6,3050.7,0.4670621]
[1763562893981,0.405504,3052.6,3050.5,0.90699264]
[1763562894179,0.486,3052.5,3050.5,6.60081231]
[1763562894404,0.486,3052.5,3050.6,0.891004]
[1763562894601,0.1862,3052.8,3050.6,0.891004]
[1763562894811,0.51431667,3052.9,3052.3,0.405504]
[1763562895018,1.02821424,3056.9,3052.3,0.405504]
[1763562895019,8.96625046,3055.9,3052.4,0.60993237]
[1763562895179,0.486,3054.3,3052.6,0.405504]
[1763562895378,0.486,3054.3,3052.6,0.602104]
[1763562895579,5.69381967,3055.9,3052.8,0.405504]
[1763562895580,0.03282732,3054.9,3052.8,0.405504]
[1763562895810,0.486,3054.9,3052.8,0.405504]
[1763562896020,0.51882732,3054.9,3052.8,0.405504]
[1763562896183,0.486,3054.9,3052.6,0.1966]
[1763562896918,0.03282732,3054.8,3052.7,0.405504]
[1763562897125,0.486,3054.9,3053.1,1.31249664]
[1763562897379,0.486,3054.9,3053.3,0.405504]
[1763562897523,0.486,3054.9,3053.2,1.11388969]
[1763562897718,0.486,3054.9,3052.8,1.39249264]
[1763562897919,0.43833132,3054.8,3052.9,1.31249664]
[1763562898123,0.486,3054.7,3052.9,0.90699264]
[1763562898321,0.486,3054.7,3052.9,1.37380911]
[1763562898635,0.486,3054.7,3053.0,0.891004]
[1763562898821,0.51398715,3056.6,3053.0,0.891004]
[1763562898822,0.6722,3055.0,3053.0,0.891004]
[1763562899022,0.6722,3055.0,3053.0,0.405504]
[1763562899277,0.486,3054.9,3053.5,0.405504]
[1763562899423,0.1862,3055.0,3053.5,0.405504]
[1763562899619,0.6722,3055.0,3053.1,0.4855]
[1763562899847,0.6722,3055.0,3053.2,1.31249664]
[1763562900100,0.486,3055.7,3053.5,1.31249664]
[1763562900380,0.51391437,3054.9,3053.4,0.405504]
[1763562900669,0.486,3055.7,3053.5,0.4855]
[1763562900962,0.1862,3056.0,3053.5,0.4855]
[1763562901148,0.486,3055.6,3053.7,0.90699264]
[1763562901357,0.03282732,3055.9,3053.7,0.90699264]
[1763562901546,0.486,3055.9,3053.8,0.4855]
[1763562901946,0.03282732,3055.8,3053.8,0.4855]
[1763562902123,0.486,3055.9,3053.8,0.6045]
[1763562902465,0.486,3055.9,3053.9,0.405504]
[1763562902619,0.1862,3056.0,3053.9,0.405504]
[1763562902932,0.1862,3056.0,3053.7,0.90699264]
[1763562902933,0.51380009,3055.5,3054.6,1.31249664]
[1763562903119,0.002,3056.7,3055.0,1.31249664]
[1763562903323,0.002,3056.7,3055.5,0.405504]
[1763562903565,0.002,3056.7,3056.6,0.602104]
[1763562903767,0.002,3056.7,3055.5,0.4855]
[1763562904067,0.002,3056.7,3055.9,0.0849]
[1763562904427,0.002,3056.7,3056.1,0.405504]